fUSD/lending_fUSD_20251221
["ID","MTS","AMOUNT","RATE_DAILY","PERIOD"]
[399405777,1766328129018,250.0,0.00035616,30]
[399405778,1766328129625,250.0,0.00035616,30]
[399405779,1766328130710,250.0,0.00035616,30]
[399405780,1766328131028,500.0,0.00034935,30]
[399405781,1766328131611,352.90599621,5e-05,2]
[399405782,1766328134773,250.0,0.00035616,30]
[399405783,1766328135886,250.0,0.00035616,30]
[399405784,1766328136550,250.0,0.00035616,30]
[399405785,1766328137398,250.0,0.00035616,30]
[399405787,1766328137927,250.0,0.00035616,30]
[399405788,1766328138688,250.0,0.00035616,30]
[399405789,1766328139319,250.0,0.00035616,30]
[399405790,1766328140016,250.0,0.00035616,30]
[399405791,1766328140647,250.0,0.00035616,30]
[399405792,1766328140756,250.0,0.00035616,30]
[399405793,1766328141324,250.0,0.00035616,30]
[399405794,1766328141506,250.0,0.00035616,30]
[399405795,1766328141922,250.0,0.00035616,30]
[399405796,1766328142229,250.0,0.00035616,30]
[399405797,1766328142910,250.0,0.00035616,30]
[399405798,1766328143310,250.0,0.00035616,30]
[399405799,1766328143584,250.0,0.00035616,30]
[399405800,1766328144024,250.0,0.00035616,30]
[399405801,1766328144660,250.0,0.00035616,30]
[399405802,1766328145265,250.0,0.00035616,30]
[399405803,1766328145893,250.0,0.00035616,30]
[399405804,1766328146582,250.0,0.00035616,30]
[399405805,1766328147194,250.0,0.00035616,30]
[399405806,1766328148449,250.0,0.00035616,30]
[399405807,1766328148592,250.0,0.00035616,30]
[399405808,1766328149224,250.0,0.00035616,30]
[399405809,1766328149874,250.0,0.00035616,30]
[399405810,1766328150555,250.0,0.00035616,30]
[399405811,1766328152230,250.0,0.00035616,30]
[399405813,1766328152843,250.0,0.00035616,30]
[399405814,1766328153884,250.0,0.00035616,30]
[399405815,1766328154372,250.0,0.00035616,30]
[399405816,1766328155305,250.0,0.00035616,30]
[399405817,1766328156096,250.0,0.00035616,30]
[399405818,1766328156221,151.0,0.00030593,31]
[399405819,1766328156365,250.0,0.00035616,30]
[399405820,1766328156908,250.0,0.00035616,30]
[399405821,1766328157566,250.0,0.00035616,30]
[399405822,1766328158691,250.0,0.00035616,30]
[399405823,1766328159333,250.0,0.00035616,30]
[399405824,1766328159819,1219.28,0.00035616,30]
[399405825,1766328159936,250.0,0.00035616,30]
[399405826,1766328160542,264.74329666,0.00035616,30]
[399405830,1766328166428,1219.28,0.00035616,30]
[399405831,1766328169128,8166.10896322,0.00010249,2]
[399405832,1766328169150,7220.90103678,0.00010249,2]
[399405833,1766328173484,1219.28,0.00035616,30]
[399405834,1766328179747,1219.28,0.00035616,30]
[399405835,1766328186555,1219.28,0.00035616,30]
[399405836,1766328194134,1219.28,0.00035616,30]
[399405837,1766328200230,1219.28,0.00035616,30]
[399405838,1766328204826,151.0,0.00035616,31]
[399405839,1766328205229,243.0,0.00035616,30]
[399405840,1766328206260,1219.28,0.00035616,30]
[399405842,1766328214008,1219.28,0.00035616,30]
[399405843,1766328234509,202.6436126,0.0001048,2]
[399405844,1766328242829,334.95,0.00035616,30]
[399405845,1766328249168,728.09,0.00035616,30]
[399405849,1766328272140,-171.91417538,0.00010572,2]
[399405850,1766328289913,325.93,0.000356,30]
[399405852,1766328332683,-180.6006365,0.00010572,2]
[399405854,1766328334664,-197.48518812,0.00010572,2]
[399405855,1766328334693,-141.21,0.00010572,2]
[399405860,1766328370605,1000.0,0.00035616,30]
[399405861,1766328374784,405.2872252,0.0001048,2]
[399405862,1766328379521,220.1958,0.00010479,2]
[399405863,1766328386235,578.5292,0.00010479,2]
[399405864,1766328387221,1000.0,0.00035616,30]
[399405865,1766328391776,1372.44312542,0.00010479,2]
[399405866,1766328391797,1127.55687458,0.00010479,2]
[399405867,1766328406173,1000.0,0.00035616,30]
[399405871,1766328440503,1944.28,0.00010213,2]
[399405872,1766328440942,500.0,0.00010213,2]
[399405874,1766328444230,200.0,0.00035616,30]
[399405875,1766328444844,271.12489126,0.00035616,30]
[399405876,1766328448149,250.0,0.00035616,30]
[399405877,1766328448781,250.0,0.00035616,30]
[399405878,1766328449414,250.0,0.00035616,30]
[399405879,1766328450056,250.0,0.00035616,30]
[399405880,1766328450677,250.0,0.00035616,30]
[399405881,1766328451318,250.0,0.00035616,30]
[399405882,1766328451929,250.0,0.00035616,30]
[399405883,1766328452579,250.0,0.00035616,30]
[399405884,1766328453674,250.0,0.00035616,30]
[399405885,1766328454791,369.82311585,0.00035616,30]
[399405887,1766328466035,199.0,0.00034246,30]
[399405888,1766328466283,199.0,0.00034931,31]
[399405889,1766328466517,199.0,0.00035616,32]
[399405892,1766328481884,314.67,0.000356,30]
[399405898,1766328541843,2500.0,0.00010478,2]
[399405899,1766328557724,1000.0,0.00035615,30]
[399405900,1766328557952,1000.0,0.00035615,30]
[399405901,1766328558207,1000.0,0.00035615,30]
[399405902,1766328558460,1000.0,0.00035615,30]
[399405903,1766328558698,1000.0,0.00035615,30]
[399405904,1766328558938,1000.0,0.00035086,30]
[399405905,1766328564850,1790.54189972,0.0001048,2]
[399405928,1766328632099,-1556.5296342,0.000105,2]
[399405929,1766328632111,-673.38785334,0.000105,2]
[399405930,1766328632120,-1345.44458259,0.00010569,2]
[399405931,1766328632130,-300.0,0.0001057,2]
[399405932,1766328632140,-300.0,0.0001057,2]
[399405933,1766328632149,-71.95850407,0.0001057,2]
[399405934,1766328632160,-1128.04149593,0.0001057,2]
[399405935,1766328632170,-237.0,0.0001057,2]
[399405936,1766328632180,-593.83301551,0.00010571,2]
[399405938,1766328632189,-593.83301551,0.00010571,2]
[399405939,1766328632199,-593.83301551,0.00010571,2]
[399405940,1766328632209,-593.83301551,0.00010571,2]
[399405941,1766328632222,-593.83301551,0.00010571,2]
[399405942,1766328632231,-503.4079046,0.00010571,2]
[399405943,1766328632243,-90.42511091,0.00010571,2]
[399405944,1766328632252,-593.83301551,0.00010571,2]
[399405945,1766328632262,-593.83301551,0.00010571,2]
[399405946,1766328632271,-593.83301551,0.00010571,2]
[399405947,1766328632283,-593.83301551,0.00010571,2]
[399405948,1766328632292,-593.83301551,0.00010571,2]
[399405949,1766328632302,-593.83301551,0.00010571,2]
[399405950,1766328632311,-593.83301551,0.00010571,2]
[399405951,1766328632321,-593.83301551,0.00010571,2]
[399405952,1766328632331,-593.83301551,0.00010571,2]
[399405953,1766328632342,-593.83301551,0.00010571,2]
[399405954,1766328632351,-593.83301551,0.00010571,2]
[399405955,1766328632361,-593.83301551,0.00010571,2]
[399405956,1766328632370,-593.83301551,0.00010571,2]
[399405957,1766328632380,-593.83301551,0.00010571,2]
[399405958,1766328632391,-593.83301551,0.00010571,2]
[399405959,1766328632400,-593.83301551,0.00010571,2]
[399405960,1766328632410,-593.83301551,0.00010571,2]
[399405961,1766328632419,-593.83301551,0.00010571,2]
[399405962,1766328632429,-593.83301551,0.00010571,2]
[399405963,1766328632438,-593.83301551,0.00010571,2]
[399405964,1766328632448,-593.83301551,0.00010571,2]
[399405966,1766328632457,-593.83301551,0.00010571,2]
[399405968,1766328632466,-593.83301551,0.00010571,2]
[399405969,1766328632476,-593.83301551,0.00010571,2]
[399405970,1766328632779,-593.83301551,0.00010571,2]
[399405971,1766328632790,-593.83301551,0.00010571,2]
[399405972,1766328632799,-593.83301551,0.00010571,2]
[399405973,1766328632809,-593.83301551,0.00010571,2]
[399405974,1766328632819,-593.83301551,0.00010571,2]
[399405975,1766328632829,-593.83301551,0.00010571,2]
[399405976,1766328632839,-593.83301551,0.00010571,2]
[399405977,1766328632849,-593.83301551,0.00010571,2]
[399405978,1766328632858,-593.83301551,0.00010571,2]
[399405979,1766328632868,-593.83301551,0.00010571,2]
[399405980,1766328632876,-593.83301551,0.00010571,2]
[399405981,1766328632886,-593.83301551,0.00010571,2]
[399405982,1766328632894,-593.83301551,0.00010571,2]
[399405983,1766328632905,-593.83301551,0.00010571,2]
[399405984,1766328632914,-593.83301551,0.00010571,2]
[399405985,1766328632925,-593.83301551,0.00010571,2]
[399405986,1766328632935,-593.83301551,0.00010571,2]
[399405987,1766328632944,-593.83301551,0.00010571,2]
[399405988,1766328632953,-593.83301551,0.00010571,2]
[399405989,1766328632962,-500.0,0.00010571,2]
[399405990,1766328632971,-500.0,0.00010571,2]
[399405991,1766328632981,-383.154352,0.00010571,2]
[399405992,1766328632991,-500.0,0.00010571,2]
[399405993,1766328633000,-500.0,0.00010571,2]
[399405994,1766328633010,-500.0,0.00010571,2]
[399405995,1766328633019,-500.0,0.00010571,2]
[399405996,1766328633028,-500.0,0.00010571,2]
[399405997,1766328633041,-500.0,0.00010571,2]
[399405998,1766328633050,-500.0,0.00010571,2]
[399405999,1766328633060,-500.0,0.00010571,2]
[399406000,1766328633070,-1279.27310896,0.00010571,2]
[399406001,1766328633080,-1279.27310896,0.00010571,2]
[399406002,1766328633091,-1279.27310896,0.00010571,2]
[399406003,1766328633101,-1279.27310896,0.00010571,2]
[399406004,1766328633111,-1279.27310896,0.00010571,2]
[399406005,1766328633121,-1279.27310896,0.00010571,2]
[399406006,1766328633131,-1279.27310896,0.00010571,2]
[399406007,1766328633141,-1279.27310896,0.00010571,2]
[399406008,1766328633150,-1279.27310896,0.00010571,2]
[399406009,1766328633159,-1279.27310896,0.00010571,2]
[399406010,1766328633168,-1279.27310896,0.00010571,2]
[399406011,1766328633177,-1279.27310896,0.00010571,2]
[399406012,1766328633188,-1279.27310896,0.00010571,2]
[399406013,1766328633197,-1279.27310896,0.00010571,2]
[399406014,1766328633207,-1279.27310896,0.00010571,2]
[399406015,1766328633218,-1279.27310896,0.00010571,2]
[399406016,1766328633228,-1279.27310896,0.00010571,2]
[399406017,1766328633237,-1279.27310896,0.00010571,2]
[399406018,1766328633246,-1279.27310896,0.00010571,2]
[399406019,1766328633255,-1279.27310896,0.00010571,2]
[399406020,1766328633265,-1279.27310896,0.00010571,2]
[399406021,1766328633274,-1279.27310896,0.00010571,2]
[399406022,1766328633284,-1279.27310896,0.00010571,2]
[399406023,1766328633294,-1279.27310896,0.00010571,2]
[399406024,1766328633303,-1279.27310896,0.00010571,2]
[399406025,1766328633313,-1279.27310896,0.00010571,2]
[399406026,1766328633323,-1279.27310896,0.00010571,2]
[399406027,1766328633332,-1279.27310896,0.00010571,2]
[399406028,1766328633342,-1279.27310896,0.00010571,2]
[399406029,1766328633351,-1279.27310896,0.00010571,2]
[399406030,1766328633361,-1279.27310896,0.00010571,2]
[399406031,1766328633370,-1279.27310896,0.00010571,2]
[399406032,1766328633379,-1279.27310896,0.00010571,2]
[399406033,1766328633388,-1297.04079104,0.00010571,2]
[399406034,1766328633398,-1297.04079104,0.00010571,2]
[399406035,1766328633407,-1297.04079104,0.00010571,2]
[399406036,1766328633417,-1297.04079104,0.00010571,2]
[399406037,1766328633426,-1297.04079104,0.00010571,2]
[399406038,1766328633435,-1297.04079104,0.00010571,2]
[399406039,1766328633446,-1297.04079104,0.00010571,2]
[399406040,1766328633455,-1297.04079104,0.00010571,2]
[399406041,1766328633465,-150.0,0.00010571,2]
[399406042,1766328633474,-2144.41,0.00010571,2]
[399406043,1766328633483,-250.0,0.00010571,2]
[399406044,1766328633493,-250.0,0.00010572,2]
[399406045,1766328633502,-151.0,0.00010573,2]
[399406046,1766328633511,-151.0,0.00010573,2]
[399406047,1766328633521,-151.0,0.00010573,2]
[399406048,1766328633531,-151.0,0.00010573,2]
[399406049,1766328633540,-151.0,0.00010573,2]
[399406050,1766328633551,-151.0,0.00010573,2]
[399406051,1766328633560,-151.0,0.00010573,2]
[399406052,1766328633569,-151.0,0.00010573,2]
[399406053,1766328633579,-151.0,0.00010573,2]
[399406054,1766328633588,-151.0,0.00010573,2]
[399406055,1766328633597,-151.0,0.00010573,2]
[399406056,1766328633607,-151.0,0.00010573,2]
[399406057,1766328633617,-151.0,0.00010573,2]
[399406058,1766328633626,-151.0,0.00010573,2]
[399406059,1766328633635,-151.0,0.00010573,2]
[399406060,1766328633645,-151.0,0.00010573,2]
[399406061,1766328633654,-151.0,0.00010573,2]
[399406062,1766328633663,-151.0,0.00010573,2]
[399406063,1766328633672,-151.0,0.00010573,2]
[399406064,1766328633681,-151.0,0.00010573,2]
[399406065,1766328633691,-500.0,0.00010577,2]
[399406066,1766328633700,-247.57947683,0.00010577,2]
[399406067,1766328633709,-500.0,0.00010577,2]
[399406068,1766328633718,-337.31718008,0.00010577,2]
[399406069,1766328633727,-500.0,0.00010577,2]
[399406070,1766328633737,-200.41016755,0.00010577,2]
[399406071,1766328633746,-1101.62355976,0.00010578,3]
[399406072,1766328633755,-1807.42,0.00010578,2]
[399406073,1766328633764,-1530.82,0.00010578,2]
[399406074,1766328633774,-9999.99,0.00010578,2]
[399406075,1766328633783,-62266.59444563,0.00010578,2]
[399406076,1766328633997,-16568.98555437,0.00010578,2]
[399406077,1766328634007,-150.99,0.00010578,2]
[399406078,1766328634017,-405.18,0.00010578,2]
[399406079,1766328634026,-9999.99,0.00010578,2]
[399406080,1766328634035,-1543.79,0.00010578,2]
[399406081,1766328634043,-2000.71561037,0.00010578,2]
[399406082,1766328634056,-27214.08438963,0.00010578,2]
[399406083,1766328634065,-4999.99,0.00010578,2]
[399406084,1766328634074,-150.99,0.00010578,2]
[399406085,1766328634083,-1575.25,0.00010578,2]
[399406086,1766328634092,-299.99,0.00010578,2]
[399406087,1766328634103,-7621.04,0.00010578,2]
[399406088,1766328634112,-9999.99,0.00010578,2]
[399406089,1766328634122,-57967.23245139,0.00010578,2]
[399406090,1766328634133,-1381.95754536,0.00010578,2]
[399406094,1766328638166,-1323.45921772,0.00010578,2]
[399406095,1766328638178,-955.88436296,0.00010578,2]
[399406096,1766328638191,-878.59516704,0.00010578,2]
[399406097,1766328638203,-506.24704117,0.00010578,2]
[399406098,1766328638219,-846.45488033,0.00010578,2]
[399406099,1766328638231,-3615.14081481,0.00010578,2]
[399406100,1766328638242,-19317.16851922,0.00010578,2]
[399406101,1766328638252,-8132.78980552,0.00010578,2]
[399406102,1766328638305,-1549.3014806,0.00010578,2]
[399406103,1766328638318,-2169.18029496,0.00010578,2]
[399406104,1766328638330,-600.0,0.00010578,2]
[399406105,1766328638363,-5687.80841892,0.00010578,2]
[399406106,1766328638373,-499.99,0.00010578,2]
[399406107,1766328638383,-9999.99,0.00010578,2]
[399406108,1766328638392,-3677.79,0.00010578,2]
[399406109,1766328638402,-1194.52,0.00010578,2]
[399406110,1766328638411,-999.99,0.00010578,2]
[399406111,1766328638421,-9999.99,0.00010578,2]
[399406112,1766328638431,-1000000.0,0.00010579,2]
[399406113,1766328638441,-33494.9637,0.0001058,2]
[399406114,1766328638450,-1000.0,0.0001058,2]
[399406115,1766328638460,-2144.41,0.00010845,2]
[399406116,1766328638470,-500.0,0.00010851,2]
[399406117,1766328638481,-3264.83,0.00010959,2]
[399406118,1766328638491,-150.0,0.00010959,2]
[399406119,1766328638501,-1600.0,0.00010973,2]
[399406120,1766328638510,-32604.71136386,0.00011099,2]
[399406121,1766328638519,-30246.06312543,0.00011099,2]
[399406122,1766328638529,-2144.41,0.00011119,2]
[399406123,1766328638539,-500.0,0.00011125,2]
[399406124,1766328638548,-30246.06312534,0.00011192,2]
[399406125,1766328638558,-32604.71136386,0.00011193,2]
[399406126,1766328638568,-344.61,0.00011281,2]
[399406127,1766328638577,-19999.99,0.00011281,2]
[399406128,1766328638587,-9999.99,0.00011281,2]
[399406129,1766328638598,-13312.29,0.00011281,2]
[399406130,1766328638608,-2144.41,0.00011393,2]
[399406131,1766328638618,-500.0,0.00011399,2]
[399406132,1766328638628,-255.0,0.00011596,2]
[399406133,1766328638638,-420.0,0.0001162,2]
[399406134,1766328638647,-195.0,0.00011627,2]
[399406135,1766328638660,-300.0,0.00011627,2]
[399406136,1766328638670,-1680.0,0.00011627,2]
[399406137,1766328638680,-195.0,0.00011627,2]
[399406138,1766328638689,-300.0,0.00011627,2]
[399406139,1766328638699,-300.0,0.00011628,2]
[399406140,1766328638708,-195.0,0.00011628,2]
[399406141,1766328638717,-300.0,0.00011628,2]
[399406142,1766328638727,-250.0,0.00011628,2]
[399406143,1766328638737,-195.0,0.00011629,2]
[399406144,1766328638746,-300.0,0.00011629,2]
[399406145,1766328638755,-2144.41,0.00011667,2]
[399406146,1766328638765,-500.0,0.00011673,2]
[399406147,1766328638774,-30246.06312534,0.00011905,2]
[399406148,1766328638784,-32604.71136386,0.00011907,2]
[399406149,1766328638794,-229.25,0.0001191,2]
[399406150,1766328638803,-2144.41,0.00011941,2]
[399406151,1766328638812,-500.0,0.00011947,2]
[399406152,1766328638822,-151.0,0.00012001,2]
[399406153,1766328638831,-304367.20125141,0.00012004,2]
[399406154,1766328638841,-1413.57889938,0.00012121,2]
[399406155,1766328638851,-2144.41,0.00012215,2]
[399406156,1766328638861,-500.0,0.00012221,2]
[399406157,1766328638870,-1600.0,0.00012345,2]
[399406158,1766328638880,-389.66,0.00012477,2]
[399406159,1766328638890,-2144.41,0.00012489,2]
[399406160,1766328638899,-500.0,0.00012495,2]
[399406161,1766328638908,-30246.06312534,0.00012619,2]
[399406162,1766328638918,-32604.71136386,0.0001262,2]
[399406163,1766328638928,-433.0,0.00012717,2]
[399406164,1766328638937,-2144.41,0.00012763,2]
[399406165,1766328638947,-500.0,0.00012769,2]
[399406166,1766328638956,-587.0,0.00012775,2]
[399406167,1766328638966,-2351.0,0.0001279,2]
[399406168,1766328638975,-333.35,0.00012929,2]
[399406169,1766328638985,-289.67,0.00012954,2]
[399406170,1766328638994,-2144.41,0.00013037,2]
[399406171,1766328639004,-500.0,0.00013043,2]
[399406172,1766328639013,-151.0,0.00013215,2]
[399406173,1766328639023,-169.30599703,0.00013273,2]
[399406174,1766328639033,-500.0,0.00013273,2]
[399406175,1766328639043,-223.24574971,0.00013273,2]
[399406176,1766328639052,-500.28275711,0.00013273,2]
[399406177,1766328639061,-500.0,0.00013273,2]
[399406178,1766328639071,-500.0,0.00013273,2]
[399406179,1766328639080,-500.0,0.00013273,2]
[399406180,1766328639090,-176.68955298,0.00013273,2]
[399406181,1766328639100,-500.0,0.00013273,2]
[399406182,1766328639109,-174.7668322,0.00013273,2]
[399406183,1766328639119,-500.0,0.00013273,2]
[399406184,1766328639130,-501.13880069,0.00013273,2]
[399406185,1766328639140,-235.5477362,0.00013273,2]
[399406186,1766328639150,-172.78810174,0.00013273,2]
[399406187,1766328639159,-162.06342056,0.00013273,2]
[399406188,1766328639170,-500.0,0.00013273,2]
[399406189,1766328639179,-500.0,0.00013273,2]
[399406190,1766328639189,-163.12595914,0.00013273,2]
[399406191,1766328639198,-500.0,0.00013273,2]
[399406192,1766328639208,-172.62322663,0.00013273,2]
[399406193,1766328639220,-500.0,0.00013273,2]
[399406194,1766328639230,-163.74041745,0.00013273,2]
[399406195,1766328639239,-165.55250469,0.00013273,2]
[399406196,1766328639248,-224.07561459,0.00013273,2]
[399406197,1766328639259,-500.0,0.00013273,2]
[399406198,1766328639269,-500.0,0.00013273,2]
[399406199,1766328639278,-500.0,0.00013273,2]
[399406200,1766328639288,-500.0,0.00013273,2]
[399406201,1766328639298,-500.0,0.00013273,2]
[399406202,1766328639308,-500.0,0.00013273,2]
[399406203,1766328639317,-500.0,0.00013273,2]
[399406204,1766328639326,-500.0,0.00013273,2]
[399406205,1766328639335,-276.49556074,0.00013273,2]
[399406206,1766328639345,-168.62041939,0.00013273,2]
[399406207,1766328639354,-500.0,0.00013273,2]
[399406208,1766328639363,-500.0,0.00013273,2]
[399406209,1766328639373,-162.88863399,0.00013273,2]
[399406210,1766328639382,-500.0,0.00013273,2]
[399406211,1766328639392,-500.0,0.00013273,2]
[399406212,1766328639401,-179.52644703,0.00013273,2]
[399406213,1766328639411,-160.24966058,0.00013273,2]
[399406214,1766328639420,-500.0,0.00013273,2]
[399406215,1766328639430,-500.0,0.00013273,2]
[399406216,1766328639439,-500.0,0.00013273,2]
[399406217,1766328639450,-216.30072536,0.00013273,2]
[399406218,1766328639460,-2144.41,0.00013311,2]
[399406219,1766328639470,-30246.06312534,0.00013332,2]
[399406220,1766328639479,-32604.71136386,0.00013333,2]
[399406221,1766328639490,-2144.41,0.00013585,2]
[399406222,1766328639501,-500.0,0.00013698,2]
[399406223,1766328639510,-500.0,0.00013698,2]
[399406224,1766328639519,-500.0,0.00013698,2]
[399406225,1766328639528,-500.0,0.00013698,2]
[399406226,1766328639538,-500.0,0.00013698,2]
[399406227,1766328639548,-344.15406571,0.00013698,2]
[399406228,1766328639558,-500.0,0.00013698,2]
[399406229,1766328639567,-500.0,0.00013698,2]
[399406230,1766328639577,-500.0,0.00013698,2]
[399406231,1766328639586,-500.0,0.00013698,2]
[399406232,1766328639596,-500.0,0.00013698,2]
[399406233,1766328639605,-511.95166241,0.00013698,2]
[399406234,1766328639615,-500.0,0.00013698,2]
[399406235,1766328639624,-500.0,0.00013698,2]
[399406236,1766328639634,-500.0,0.00013698,2]
[399406237,1766328639644,-500.0,0.00013698,2]
[399406238,1766328639653,-500.0,0.00013698,2]
[399406239,1766328639662,-500.0,0.00013698,2]
[399406240,1766328639672,-500.0,0.00013698,2]
[399406241,1766328639681,-500.0,0.00013698,2]
[399406242,1766328639691,-500.0,0.00013698,2]
[399406243,1766328639700,-500.0,0.00013698,2]
[399406244,1766328639709,-500.0,0.00013698,2]
[399406245,1766328639719,-500.0,0.00013698,2]
[399406246,1766328639728,-500.0,0.00013698,2]
[399406247,1766328639741,-500.0,0.00013698,2]
[399406248,1766328639757,-500.0,0.00013698,2]
[399406249,1766328639767,-500.0,0.00013698,2]
[399406250,1766328639777,-500.0,0.00013698,2]
[399406251,1766328639786,-500.0,0.00013698,2]
[399406252,1766328639796,-510.69307451,0.00013698,2]
[399406254,1766328640011,-500.0,0.00013698,2]
[399406255,1766328640021,-500.0,0.00013698,2]
[399406256,1766328640030,-500.0,0.00013698,2]
[399406257,1766328640040,-549.68,0.00013698,2]
[399406258,1766328640049,-549.68,0.00013698,2]
[399406259,1766328640058,-549.68,0.00013698,2]
[399406260,1766328640067,-549.68,0.00013698,2]
[399406261,1766328640076,-500.0,0.00013698,2]
[399406262,1766328640085,-500.0,0.00013698,2]
[399406263,1766328640094,-500.0,0.00013698,2]
[399406265,1766328640104,-500.0,0.00013698,2]
[399406266,1766328640113,-500.0,0.00013698,2]
[399406267,1766328640122,-500.0,0.00013698,2]
[399406268,1766328640131,-500.0,0.00013698,2]
[399406269,1766328640140,-500.0,0.00013698,2]
[399406270,1766328640150,-500.0,0.00013698,2]
[399406271,1766328640159,-500.0,0.00013698,2]
[399406272,1766328640168,-500.0,0.00013698,2]
[399406273,1766328640178,-500.0,0.00013698,2]
[399406274,1766328640187,-567.20870026,0.00013698,2]
[399406275,1766328640196,-500.0,0.00013698,2]
[399406276,1766328640206,-500.0,0.00013698,2]
[399406277,1766328640218,-500.0,0.00013698,2]
[399406278,1766328640229,-500.0,0.00013698,2]
[399406279,1766328640238,-500.0,0.00013698,2]
[399406280,1766328640247,-500.0,0.00013698,2]
[399406281,1766328640259,-500.0,0.00013698,2]
[399406282,1766328640268,-500.0,0.00013698,2]
[399406283,1766328640277,-501.00325997,0.00013698,2]
[399406284,1766328640287,-500.0,0.00013698,2]
[399406285,1766328640297,-500.0,0.00013698,2]
[399406286,1766328640306,-500.0,0.00013698,2]
[399406287,1766328640316,-500.0,0.00013698,2]
[399406288,1766328640325,-500.0,0.00013698,2]
[399406289,1766328640334,-500.0,0.00013698,2]
[399406290,1766328640344,-500.0,0.00013698,2]
[399406291,1766328640353,-500.0,0.00013698,2]
[399406292,1766328640362,-500.0,0.00013698,2]
[399406293,1766328640372,-500.0,0.00013698,2]
[399406294,1766328640381,-500.0,0.00013698,2]
[399406295,1766328640390,-500.0,0.00013698,2]
[399406296,1766328640400,-500.0,0.00013698,2]
[399406297,1766328640410,-500.0,0.00013698,2]
[399406298,1766328640419,-500.0,0.00013698,2]
[399406299,1766328640429,-500.0,0.00013698,2]
[399406300,1766328640438,-500.0,0.00013698,2]
[399406301,1766328640447,-500.0,0.00013698,2]
[399406302,1766328640457,-500.0,0.00013698,2]
[399406303,1766328640466,-500.0,0.00013698,2]
[399406304,1766328640475,-500.0,0.00013698,2]
[399406305,1766328640484,-500.0,0.00013698,2]
[399406306,1766328640494,-500.0,0.00013698,2]
[399406307,1766328640503,-500.0,0.00013698,2]
[399406308,1766328640512,-500.0,0.00013698,2]
[399406309,1766328640522,-500.0,0.00013698,2]
[399406310,1766328640531,-500.0,0.00013698,2]
[399406311,1766328640540,-500.0,0.00013698,2]
[399406312,1766328640550,-500.0,0.00013698,2]
[399406313,1766328640559,-500.0,0.00013698,2]
[399406314,1766328640568,-500.0,0.00013698,2]
[399406315,1766328640578,-500.0,0.00013698,2]
[399406316,1766328640587,-500.0,0.00013698,2]
[399406317,1766328640597,-548.39145634,0.00013698,2]
[399406318,1766328640606,-500.0,0.00013698,2]
[399406319,1766328640615,-500.0,0.00013698,2]
[399406320,1766328640624,-500.0,0.00013698,2]
[399406321,1766328640633,-500.0,0.00013698,2]
[399406322,1766328640642,-500.0,0.00013698,2]
[399406323,1766328640651,-500.0,0.00013698,2]
[399406324,1766328640663,-500.0,0.00013698,2]
[399406325,1766328640674,-500.0,0.00013698,2]
[399406326,1766328640684,-500.0,0.00013698,2]
[399406327,1766328640695,-500.0,0.00013698,2]
[399406328,1766328640704,-500.0,0.00013698,2]
[399406329,1766328640714,-500.0,0.00013698,2]
[399406330,1766328640724,-500.0,0.00013698,2]
[399406331,1766328640733,-500.0,0.00013698,2]
[399406332,1766328640743,-500.0,0.00013698,2]
[399406333,1766328640752,-500.0,0.00013698,2]